Workbook

Sheet Set 1 annotated
A1: SUMMARY OUTPUT
A3: Regression Statistics
A4: Multiple R | B4: 0.986736984
A5: R Square | B5: 0.9736498756
A6: Adjusted R Square | B6: 0.9661212686
A7: Standard Error | B7: 0.1439651891
A8: Observations | B8: 10
A10: ANOVA
B11: df | C11: SS | D11: MS | E11: F | F11: Significance F
A12: Regression | B12: 2 | C12: 5.360843962 | D12: 2.680421981 | E12: 129.3266972 | F12: 2.969883041e-06
A13: Residual | B13: 7 | C13: 0.1450818297 | D13: 0.02072597568
A14: Total | B14: 9 | C14: 5.505925792
B16: Coefficients | C16: Standard Error | D16: t Stat | E16: P-value | F16: Lower 95% | G16: Upper 95% | H16: Lower 95.0% | I16: Upper 95.0%
A17: Intercept | B17: 1.024031594 | C17: 0.1693249332 | D17: 6.04773068 | E17: 0.0005171221768 | F17: 0.6236417502 | G17: 1.424421437 | H17: 0.6236417502 | I17: 1.424421437
A18: X Variable 1 | B18: 0.960233501 | C18: 0.07071723062 | D18: 13.57849413 | E18: 2.763423278e-06 | F18: 0.7930138225 | G18: 1.127453179 | H18: 0.7930138225 | I18: 1.127453179
A19: X Variable 2 | B19: -0.09501121486 | C19: 0.006265280665 | D19: -15.16471806 | E19: 1.304394088e-06 | F19: -0.1098262495 | G19: -0.08019618026 | H19: -0.1098262495 | I19: -0.08019618026
D27: =1E+50^0 -> 1

Sheet Set10
A1: SUMMARY OUTPUT
A3: Regression Statistics
A4: Multiple R | B4: 0.9966960068
A5: R Square | B5: 0.9934029299
A6: Adjusted R Square | B6: 0.9915180527
A7: Standard Error | B7: 0.07613231546
A8: Observations | B8: 10
A10: ANOVA
B11: df | C11: SS | D11: MS | E11: F | F11: Significance F
A12: Regression | B12: 2 | C12: 6.10956733 | D12: 3.054783665 | E12: 527.0385501 | F12: 2.332001597e-08
A13: Residual | B13: 7 | C13: 0.0405729062 | D13: 0.005796129457
A14: Total | B14: 9 | C14: 6.150140236
B16: Coefficients | C16: Standard Error | D16: t Stat | E16: P-value | F16: Lower 95% | G16: Upper 95% | H16: Lower 95.0% | I16: Upper 95.0%
A17: Intercept | B17: 0.8800143961 | C17: 0.08954316882 | D17: 9.8278228 | E17: 2.398666288e-05 | F17: 0.6682784476 | G17: 1.091750345 | H17: 0.6682784476 | I17: 1.091750345
A18: X Variable 1 | B18: 1.030982575 | C18: 0.03739700231 | D18: 27.56858869 | E18: 2.120728243e-08 | F18: 0.9425527165 | G18: 1.119412434 | H18: 0.9425527165 | I18: 1.119412434
A19: X Variable 2 | B19: -0.101751425 | C19: 0.003313233754 | D19: -30.71060858 | E19: 1.00176158e-08 | F19: -0.1095859779 | G19: -0.09391687209 | H19: -0.1095859779 | I19: -0.09391687209

Sheet matrix formulas
A1: Matrix formulation
A3: Simulating data according to Y = a1 + a2x + a3x2
A6: xi | B6: yi | C6: yifit | D6: yi-yifit | E6: [Jya] | F6: =dyfit/da | I6: [Xu]-1 = [s2a]/s2y | M6: [Jya]†[Jya]
A7: 1 | B7: 1.869976784 | C7: =MMULT(E7:G16,I17:I19) -> 1.88925388 | D7: =B7-C7 -> -0.01927709573 | E7: 1 | F7: 1 | G7: =F7^2 -> 1 | I7: =MINVERSE(MMULT(TRANSPOSE(E7:G16),E7:G16)) -> 1.383333333 | J7: -0.525 | K7: 0.04166666667 | M7: =MMULT(I12:R14,E7:G16) -> 1 | N7: 1.074695888e-13 | O7: 6.394884622e-13
A8: 2 | B8: 2.530979584 | C8: 2.564453736 | D8: =B8-C8 -> -0.03347415231 | E8: 1 | F8: 2 | G8: =F8^2 -> 4 | I8: -0.525 | J8: 0.2412878788 | K8: -0.02083333333 | M8: 0 | N8: 1 | O8: 7.105427358e-15
A9: 3 | B9: 3.067300937 | C9: 3.049631163 | D9: 0.017669774 | E9: 1 | F9: 3 | G9: 9 | I9: 0.04166666667 | J9: -0.02083333333 | K9: 0.001893939394 | M9: -5.551115123e-17 | N9: 6.661338148e-16 | O9: 1
A10: 4 | B10: 3.566145583 | C10: 3.34478616 | D10: 0.2213594226 | E10: 1 | F10: 4 | G10: 16
A11: 5 | B11: 3.355581336 | C11: 3.449918727 | D11: -0.094337391 | E11: 1 | F11: 5 | G11: 25 | I11: [Jya]†
A12: 6 | B12: 3.142241926 | C12: 3.365028865 | D12: -0.2227869393 | E12: 1 | F12: 6 | G12: 36 | I12: =MMULT(I7:K9,TRANSPOSE(E7:G16)) -> 0.9 | J12: 0.5 | K12: 0.1833333333 | L12: -0.05 | M12: -0.2 | N12: -0.2666666667 | O12: -0.25 | P12: -0.15 | Q12: 0.03333333333 | R12: 0.3
A13: 7 | B13: 3.169399448 | C13: 3.090116573 | D13: 0.07928287521 | E13: 1 | F13: 7 | G13: 49 | I13: -0.3045454545 | J13: -0.1257575758 | K13: 0.01136363636 | L13: 0.1068181818 | M13: 0.1606060606 | N13: 0.1727272727 | O13: 0.1431818182 | P13: 0.07196969697 | Q13: -0.04090909091 | R13: -0.1954545455
A14: 8 | B14: 2.607223889 | C14: 2.625181851 | D14: -0.01795796186 | E14: 1 | F14: 8 | G14: 64 | I14: 0.02272727273 | J14: 0.007575757576 | K14: -0.003787878788 | L14: -0.01136363636 | M14: -0.01515151515 | N14: -0.01515151515 | O14: -0.01136363636 | P14: -0.003787878788 | Q14: 0.007575757576 | R14: 0.02272727273
A15: 9 | B15: 2.120568836 | C15: 1.970224699 | D15: 0.1503441367 | E15: 1 | F15: 9 | G15: 81
A16: 10 | B16: 1.04442245 | C16: 1.125245118 | D16: -0.08082266835 | E16: 1 | F16: 10 | G16: 100 | I16: a | J16: sa | M16: sy | N16: sy
I17: =MMULT(I12:R14,B7:B16) -> 1.024031594 | J17: =SQRT(MMULT(_xlfn.MUNIT(3)*I7:K9,ROW(1:3)^0))*M17 -> 0.1176151918 | K17: input-> | M17: 0.1 | N17: =SQRT(SUMPRODUCT(D7:D16,D7:D16)/7) -> 0.1439651891
I18: 0.960233501 | J18: 0.04912106257
I19: -0.09501121486 | J19: 0.004351941399 | M19: c2n | N19: =N17^2/M17^2 -> 2.072597568

Sheet Linear
B2: Simulating data according to y = A + Bx + Cx2 | N2: Fitting data according to y = A + Bx + Cx2
B3: True values | N3: Fit values | P3: Samp sd | Q3: True sd
B4: A | C4: 1 | N4: A | O4: 1.024031594 | P4: 0.1693249332 | Q4: =P4*(0.1/$P$9) -> 0.1176151918
B5: B | C5: 1 | N5: B | O5: 0.960233501 | P5: 0.07071723062 | Q5: =P5*(0.1/$P$9) -> 0.04912106257
B6: C | C6: -0.1 | N6: C | O6: -0.09501121486 | P6: 0.006265280665 | Q6: =P6*(0.1/$P$9) -> 0.004351941399
N8: S (DY)2 | O8: dof | P8: sy | Q8: c2n
N9: =SUMPRODUCT(R12:R21,R12:R21) -> 0.1450818297 | O9: 7 | P9: =SQRT(N9/O9) -> 0.1439651891 | Q9: =(P9/0.1)^2 -> 2.072597568
B11: x | C11: ytrue | D11: yerr | E11: ymeas | N11: x | O11: x2 | P11: ymeas | Q11: yfit | R11: Dy
B12: 1 | C12: =$C$4+$C$5*B12+$C$6*B12^2 -> 1.9 | D12: -0.03002321591 | E12: =C12+D12 -> 1.869976784 | N12: =B12 -> 1 | O12: =B12^2 -> 1 | P12: =E12 -> 1.869976784 | Q12: =$O$4+$O$5*N12+$O$6*O12 -> 1.88925388 | R12: =P12-Q12 -> -0.01927709573
B13: 2 | C13: =$C$4+$C$5*B13+$C$6*B13^2 -> 2.6 | D13: -0.06902041605 | E13: =C13+D13 -> 2.530979584 | N13: =B13 -> 2 | O13: =B13^2 -> 4 | P13: =E13 -> 2.530979584 | Q13: =$O$4+$O$5*N13+$O$6*O13 -> 2.564453736 | R13: =P13-Q13 -> -0.03347415231
B14: 3 | C14: 3.1 | D14: -0.03269906301 | E14: 3.067300937 | N14: 3 | O14: 9 | P14: 3.067300937 | Q14: 3.049631163 | R14: 0.017669774
B15: 4 | C15: 3.4 | D15: 0.1661455826 | E15: 3.566145583 | N15: 4 | O15: 16 | P15: 3.566145583 | Q15: 3.34478616 | R15: 0.2213594226
B16: 5 | C16: 3.5 | D16: -0.1444186637 | E16: 3.355581336 | N16: 5 | O16: 25 | P16: 3.355581336 | Q16: 3.449918727 | R16: -0.094337391
B17: 6 | C17: 3.4 | D17: -0.2577580744 | E17: 3.142241926 | N17: 6 | O17: 36 | P17: 3.142241926 | Q17: 3.365028865 | R17: -0.2227869393
B18: 7 | C18: 3.1 | D18: 0.06939944797 | E18: 3.169399448 | N18: 7 | O18: 49 | P18: 3.169399448 | Q18: 3.090116573 | R18: 0.07928287521
B19: 8 | C19: 2.6 | D19: 0.007223889043 | E19: 2.607223889 | N19: 8 | O19: 64 | P19: 2.607223889 | Q19: 2.625181851 | R19: -0.01795796186
B20: 9 | C20: 1.9 | D20: 0.2205688361 | E20: 2.120568836 | N20: 9 | O20: 81 | P20: 2.120568836 | Q20: 1.970224699 | R20: 0.1503441367
B21: 10 | C21: 1 | D21: 0.04442244972 | E21: 1.04442245 | N21: 10 | O21: =B21^2 -> 100 | P21: 1.04442245 | Q21: 1.125245118 | R21: -0.08082266835
O23: Set 1 | P23: Set 2 | Q23: Set 3 | R23: Set 4 | S23: Set 5 | T23: Set 6 | U23: Set 7 | V23: Set 8 | W23: Set 9 | X23: Set 10 | Y23: mean | Z23: std dev
N24: Afit | O24: 1.024031594 | P24: 0.7829375332 | Q24: 1.037432786 | R24: 1.069753253 | S24: 1.084324427 | T24: 0.9896543841 | U24: 0.7862555877 | V24: 0.929447794 | W24: 1.145610466 | X24: 0.8800143961 | Y24: =AVERAGE(O24:X24) -> 0.9729462219 | Z24: =STDEV(O24:X24) -> 0.1247763215
N25: Bfit | O25: 0.960233501 | P25: 1.046532105 | Q25: 0.9597683685 | R25: 0.977421696 | S25: 0.9771144374 | T25: 1.001090376 | U25: 1.090074516 | V25: 1.062044918 | W25: 0.9596535431 | X25: 1.030982575 | Y25: =AVERAGE(O25:X25) -> 1.006491604 | Z25: =STDEV(O25:X25) -> 0.04776010736
N26: Dfit | O26: -0.09501121486 | P26: -0.1013045698 | Q26: -0.09550616429 | R26: -0.09902582179 | S26: -0.09805559937 | T26: -0.09954321145 | U26: -0.108011856 | V26: -0.1072006013 | W26: -0.09788785703 | X26: -0.101751425 | Y26: =AVERAGE(O26:X26) -> -0.1003298321 | Z26: =STDEV(O26:X26) -> 0.004399520839
N27: c2n | O27: 2.072597568 | P27: 0.6480331032 | Q27: 1.57243717 | R27: 0.5712058443 | S27: 1.057323262 | T27: 1.333191435 | U27: 1.164812733 | V27: 0.9186540992 | W27: 2.377203907 | X27: 0.5796129457 | Y27: =AVERAGE(O27:X27) -> 1.229507207 | Z27: =STDEV(O27:X27) -> 0.6218840691
N29: set | O29: 1 | P29: 2 | Q29: 3 | R29: 4 | S29: 5 | T29: 6 | U29: 7 | V29: 8 | W29: 9 | X29: 10
N30: mean | O30: =AVERAGE(O32:O41) -> -0.002615922767 | P30: -0.01136182846 | Q30: -0.01082851213 | R30: -0.0169215582 | S30: 0.03331325615 | T30: 0.01323780907 | U30: -0.0267910309 | V30: -0.006528307495 | W30: 0.005022457117 | X30: -0.01701130259 | Y30: =AVERAGE(O30:X30) -> -0.00404849402 | Z30: =STDEV(O30:X30) -> 0.01743440793
N31: s2 | O31: =VAR(O32:O41) -> 0.019673197 | P31: 0.01463374977 | Q31: 0.01419077572 | R31: 0.005788277467 | S31: 0.00846597293 | T31: 0.01072428465 | U31: 0.01286010394 | V31: 0.0128866772 | W31: 0.02143555011 | X31: 0.005946512813 | Y31: =AVERAGE(O31:X31) -> 0.01266051016 | Z31: =STDEV(O31:X31) -> 0.005229764533
N32: N(0,0.1) | O32: -0.03002321591 | P32: -0.1277683168 | Q32: 0.02442573077 | R32: 0.127647354 | S32: 0.1198350219 | T32: 0.1733133104 | U32: -0.218358764 | V32: -0.02341812433 | W32: 0.1095022526 | X32: -0.1086700649
O33: -0.06902041605 | P33: -0.1690432327 | Q33: -0.1846910891 | R33: -0.09776294974 | S33: -0.0773507054 | T33: -0.2117931217 | U33: -0.05679248716 | V33: -0.04040475687 | W33: 0.01348530532 | X33: -0.03654929515
O34: -0.03269906301 | P34: -0.03702405138 | Q34: 0.1342641553 | R34: -0.008528445505 | S34: -0.01861576493 | T34: -0.05132073966 | U34: 0.1972211976 | V34: 0.08656729733 | W34: 0.2375654731 | X34: -0.06549066711
O35: 0.1661455826 | P35: -0.1612397682 | Q35: 0.05389483704 | R35: 0.09021914593 | S35: 0.1918915586 | T35: -0.00845170689 | U35: -0.05237950518 | V35: 0.06751383808 | W35: -0.03813238436 | X35: 0.07576113603
O36: -0.1444186637 | P36: -0.08472375157 | Q36: -0.1521570994 | R36: -0.03628770173 | S36: -0.003247919267 | T36: 0.002811702871 | U36: -0.0322716005 | V36: 0.2194501576 | W36: -0.1742482709 | X36: -0.07364769772
O37: -0.2577580744 | P37: 0.1447670002 | Q37: -0.1279763637 | R37: -0.06535799457 | S37: 0.07577136785 | T37: 0.04667117537 | U37: 0.08746087587 | V37: 0.0595741767 | W37: -0.1371849976 | X37: -0.1115738542
O38: 0.06939944797 | P38: 0.03226364242 | Q38: -0.09398377188 | R38: -0.02409478839 | S38: 0.01315356712 | T38: 0.05577976481 | U38: 0.0138714995 | V38: -0.0910961262 | W38: 0.1884845915 | X38: 0.04871981218
O39: 0.007223889043 | P39: 0.08298411558 | Q39: 0.08620077097 | R39: -0.06365314675 | S39: -0.0923191692 | T39: 0.1111188794 | U39: -0.1201178748 | V39: -0.1558892109 | W39: 0.07113249012 | X39: 0.06384061635
O40: 0.2205688361 | P40: 0.1443754627 | Q40: 0.13039039 | R40: 0.01129603788 | S40: 0.0001950866135 | T40: 0.0453701432 | U40: -0.002551473699 | V40: -0.1054675067 | W40: -0.1774806151 | X40: 0.08283313946
O41: 0.04442244972 | P41: 0.06179061529 | Q41: 0.02134731858 | R41: -0.1026930931 | S41: 0.1238195182 | T41: -0.03112131708 | U41: -0.08399217677 | V41: -0.08211281965 | W41: -0.04289927347 | X41: -0.04533615083

Sheet Nonlinear
B2: Simulating data according to y = A + Bx + Cx2 | N2: Fitting data according to y = A + Bx + Cx2
B3: True values | N3: Fit values | R3: True sd
B4: A | C4: 1 | N4: A | O4: 1.024031594 | R4: 0.1176151918
B5: B | C5: 1 | N5: B | O5: 0.960233501 | R5: 0.04912106257
B6: C | C6: -0.1 | N6: C | O6: -0.09501121486 | R6: 0.004351941399
N8: c2 | O8: dof | Q8: c2n | R8: s
N9: =SUMPRODUCT(R12:R21,R12:R21) -> 14.50818297 | O9: 7 | Q9: =N9/O$9:O$65536 -> 2.072597568 | R9: =0.1*SQRT(Q9) -> 0.1439651891
B11: x | C11: ytrue | D11: yerr | E11: ymeas | N11: x | O11: ymeas | P11: sy | Q11: yfit | R11: Dy/sy
B12: 1 | C12: =$C$4+$C$5*B12+$C$6*B12^2 -> 1.9 | D12: -0.03002321591 | E12: =C12+D12 -> 1.869976784 | N12: 1 | O12: =E12 -> 1.869976784 | P12: 0.1 | Q12: =$O$4+$O$5*N12+$O$6*N12^2 -> 1.88925388 | R12: =(O$12:O$65536-Q$12:Q$65536)/P12 -> -0.1927709573
B13: 2 | C13: =$C$4+$C$5*B13+$C$6*B13^2 -> 2.6 | D13: -0.06902041605 | E13: =C13+D13 -> 2.530979584 | N13: 2 | O13: =E13 -> 2.530979584 | P13: 0.1 | Q13: =$O$4+$O$5*N13+$O$6*N13^2 -> 2.564453736 | R13: -0.3347415231
B14: 3 | C14: 3.1 | D14: -0.03269906301 | E14: 3.067300937 | N14: 3 | O14: 3.067300937 | P14: 0.1 | Q14: 3.049631163 | R14: 0.17669774
B15: 4 | C15: 3.4 | D15: 0.1661455826 | E15: 3.566145583 | N15: 4 | O15: 3.566145583 | P15: 0.1 | Q15: 3.34478616 | R15: 2.213594226
B16: 5 | C16: 3.5 | D16: -0.1444186637 | E16: 3.355581336 | N16: 5 | O16: 3.355581336 | P16: 0.1 | Q16: 3.449918727 | R16: -0.94337391
B17: 6 | C17: 3.4 | D17: -0.2577580744 | E17: 3.142241926 | N17: 6 | O17: 3.142241926 | P17: 0.1 | Q17: 3.365028865 | R17: -2.227869393
B18: 7 | C18: 3.1 | D18: 0.06939944797 | E18: 3.169399448 | N18: 7 | O18: 3.169399448 | P18: 0.1 | Q18: 3.090116573 | R18: 0.7928287521
B19: 8 | C19: 2.6 | D19: 0.007223889043 | E19: 2.607223889 | N19: 8 | O19: 2.607223889 | P19: 0.1 | Q19: 2.625181851 | R19: -0.1795796186
B20: 9 | C20: 1.9 | D20: 0.2205688361 | E20: 2.120568836 | N20: 9 | O20: 2.120568836 | P20: 0.1 | Q20: 1.970224699 | R20: 1.503441367
B21: 10 | C21: 1 | D21: 0.04442244972 | E21: 1.04442245 | N21: 10 | O21: 1.04442245 | P21: 0.1 | Q21: 1.125245118 | R21: -0.8082266835
